bitfinex/quotes_SOLUSD_20250901
["timestamp","ask_amount","ask_price","bid_price","bid_amount"]
[1756714605798,40.96,202.94,202.9,3.8263585]
[1756714606022,40.96,202.93,202.9,3.8263585]
[1756714606222,40.96,202.93,202.85,22.10000372]
[1756714606536,40.98,202.92,202.9,4.92853622]
[1756714606732,40.96,202.91,202.9,4.92853622]
[1756714607089,0.14216157,203.0,202.9,8.75489472]
[1756714607298,3.8263585,202.99,202.9,4.92853622]
[1756714607527,40.98,202.98,202.93,26.0]
[1756714607731,0.14216157,203.04,202.95,3.8263585]
[1756714607938,13.59559401,203.05,202.96,3.8263585]
[1756714607939,3.8263585,203.02,202.96,3.8263585]
[1756714608249,3.8263585,203.02,202.93,26.0]
[1756714608250,3.8263585,203.0,202.93,26.0]
[1756714608431,3.8263585,203.01,202.95,8.7536805]
[1756714608741,40.96,202.99,202.95,21.0719855]
[1756714608919,40.96,202.98,202.95,17.245627]
[1756714609306,40.96,202.97,202.95,17.245627]
[1756714609739,40.96,202.97,202.94,4.92753128]
[1756714610425,40.96,202.96,202.93,4.92780761]
[1756714611013,3.8263585,202.94,202.85,4.84587507]
[1756714611224,3.8263585,202.91,202.85,3.8263585]
[1756714611412,44.7863585,202.9,202.84,3.8263585]
[1756714611718,40.96,202.9,202.86,29.8263585]
[1756714611920,40.96,202.9,202.89,3.8263585]
[1756714612136,40.96,202.93,202.89,3.8263585]
[1756714612433,3.8263585,202.99,202.92,8.75440896]
[1756714612621,3.8263585,202.99,202.92,4.92805046]
[1756714612822,40.96,202.98,202.93,3.8263585]
[1756714613026,3.8263585,202.97,202.92,17.24817661]
[1756714613609,34.804214,203.11,202.94,3.8263585]
[1756714613810,3.8263585,203.0,202.94,3.8263585]
[1756714614035,42.2663585,202.99,202.93,3.8263585]
[1756714614336,40.96,202.98,202.94,4.92756479]
[1756714614834,44.7863585,202.98,202.94,4.92756479]
[1756714615430,3.8263585,202.96,202.92,4.92805046]
[1756714615629,3.8263585,202.94,202.87,4.92926504]
[1756714615851,3.8263585,202.92,202.87,4.92926504]
[1756714616033,40.96,202.91,202.9,26.0]
[1756714616337,3.8263585,202.93,202.87,21.07878615]
[1756714616638,3.8263585,202.93,202.9,26.0]
[1756714616835,40.94,202.96,202.92,3.8263585]
[1756714617243,40.94,202.96,202.9,26.0]
[1756714617445,40.94,202.96,202.91,3.8263585]
[1756714617622,3.8263585,202.95,202.94,0.12]
[1756714617826,40.94,202.96,202.94,0.12]
[1756714618124,17.42195251,202.95,202.94,0.12]
[1756714618725,26.31779458,202.95,202.94,0.12]
[1756714618926,21.39047258,202.95,202.94,0.12]
[1756714619126,26.31779458,202.95,202.94,0.12]
[1756714619536,21.39047258,202.95,202.94,0.12]
[1756714619937,58.50411408,202.95,202.94,0.12]
[1756714620626,54.67775558,202.95,202.94,0.12]
[1756714620826,58.50411408,202.95,202.94,0.12]
[1756714621238,17.42195251,202.95,202.94,0.12]
[1756714621436,44.7663585,202.95,202.94,5.04756479]
[1756714622632,40.94,202.95,202.94,5.04756479]
[1756714622946,44.7663585,202.95,202.94,0.12]
[1756714623122,40.94,202.95,202.94,5.04756479]
[1756714623322,44.7663585,202.95,202.94,5.04756479]
[1756714623518,44.7663585,202.95,202.94,0.12]
[1756714623841,12.31258583,203.05,202.94,0.12]
[1756714623842,13.59559401,203.02,202.94,21.19283528]
[1756714624159,0.03,203.06,202.97,3.8263585]
[1756714624348,40.94,203.05,202.97,3.8263585]
[1756714624520,13.59559401,203.04,202.94,43.36647678]
[1756714624722,3.8263585,203.02,202.94,68.00430076]
[1756714624958,40.94,203.03,202.97,3.8263585]
[1756714625147,40.92,203.02,202.98,3.8263585]
[1756714626252,40.92,203.02,202.97,26.0]
[1756714626423,40.92,203.02,202.97,29.8263585]
[1756714626755,40.92,203.02,202.98,21.06943663]
[1756714626949,40.92,203.02,202.98,4.92659375]
[1756714627258,13.59559401,202.98,202.94,0.12]
[1756714627444,3.8263585,202.95,202.94,0.12]
[1756714627752,21.39047258,202.95,202.94,0.12]
[1756714627932,58.48411408,202.95,202.94,0.12]
[1756714628551,44.7463585,202.95,202.94,5.04756479]
[1756714628849,3.8263585,202.95,202.94,5.04756479]
[1756714629062,44.7463585,202.95,202.94,0.12]
[1756714629246,44.7463585,202.95,202.94,5.04756479]
[1756714629454,3.8263585,202.95,202.94,5.04756479]
[1756714629750,44.7463585,202.95,202.94,0.12]
[1756714629933,40.92,202.95,202.94,0.12]
[1756714630137,62.31047258,202.95,202.94,0.12]
[1756714630343,67.23779458,202.95,202.94,0.12]
[1756714630880,39.73775558,202.95,202.94,0.12]
[1756714631044,58.32195251,202.95,202.94,0.12]
[1756714634545,14.75,203.08,202.94,5.04756479]
[1756714634744,3.8263585,202.99,202.94,5.04756479]
[1756714634958,44.7263585,202.98,202.94,5.04756479]
[1756714635271,3.8263585,202.97,202.94,5.04756479]
[1756714635440,3.8263585,202.96,202.94,5.04756479]
[1756714635640,40.9,202.95,202.94,5.04756479]
[1756714636840,44.7263585,202.95,202.94,0.12]
[1756714637565,13.59559401,203.0,202.94,5.04756479]
[1756714637766,0.03,202.95,202.94,17.36647678]
[1756714637977,40.91,202.95,202.94,5.04756479]
[1756714638180,44.7363585,202.95,202.94,5.04756479]
[1756714638774,44.7363585,202.95,202.94,0.12]
[1756714639289,44.7363585,202.95,202.94,5.04756479]
[1756714639455,58.33195251,202.95,202.94,0.12]
[1756714639778,58.47411408,202.95,202.94,0.12]
[1756714640844,0.03,202.95,202.94,5.04756479]
[1756714641074,36.85,202.95,202.94,5.04756479]
[1756714641957,40.91,202.95,202.94,5.04756479]
[1756714642857,40.91,202.95,202.94,0.12]
[1756714643061,58.33195251,202.95,202.94,0.12]
[1756714643576,63.40143608,202.95,202.94,0.12]
[1756714644799,67.22779458,202.95,202.94,0.12]
[1756714644966,21.42047258,202.95,202.94,0.12]
[1756714645147,43.59411408,202.95,202.94,0.12]
[1756714645349,89.38143608,202.95,202.94,0.12]
[1756714645568,48.52143608,202.95,202.94,0.12]
[1756714645881,59.55507758,202.95,202.94,0.12]
[1756714646183,72.13633958,202.95,202.94,0.12]
[1756714646350,31.27633958,202.95,202.94,0.12]
[1756714646554,72.13633958,202.95,202.94,0.12]
[1756714646762,67.20779458,202.95,202.94,0.12]
[1756714647055,72.13724658,202.95,202.94,0.12]
[1756714647256,39.73775558,202.92,202.91,0.12]
[1756714647476,84.42411408,202.92,202.91,0.12]
[1756714647683,43.56411408,202.92,202.91,0.12]
[1756714647882,84.42411408,202.92,202.91,0.12]
[1756714649110,80.59775558,202.92,202.91,0.12]
[1756714649283,39.73775558,202.92,202.91,0.12]
[1756714649463,13.73775558,202.92,202.91,0.12]
[1756714649661,58.28195251,202.92,202.91,0.12]
[1756714650066,17.42195251,202.92,202.91,0.12]
[1756714650270,58.28195251,202.92,202.91,0.12]
[1756714650865,58.28195251,202.92,202.91,5.04829333]
[1756714650866,13.59559401,202.92,202.91,5.04829333]
[1756714651181,54.43559401,202.92,202.91,5.04829333]
[1756714651386,13.59559401,202.92,202.91,5.04829333]
[1756714651570,58.26195251,202.92,202.91,0.12]
[1756714651879,58.40411408,202.92,202.91,0.12]
[1756714652180,63.33216454,202.92,202.91,0.12]
[1756714653182,89.33216454,202.92,202.91,0.12]
[1756714653380,63.33216454,202.92,202.91,0.12]
[1756714654076,84.40411408,202.92,202.91,0.12]
[1756714654280,48.49216454,202.92,202.91,0.12]
[1756714654582,89.33216454,202.92,202.91,0.12]
[1756714654776,43.56411408,202.92,202.91,0.12]
[1756714654978,17.38360735,202.92,202.91,0.12]
[1756714655183,58.22360735,202.92,202.91,0.12]
[1756714656666,63.29381938,202.92,202.91,0.12]
[1756714658388,89.29381938,202.92,202.91,0.12]
[1756714658562,63.29381938,202.92,202.91,0.12]
[1756714658983,58.36576892,202.92,202.91,0.12]
[1756714659183,84.34576892,202.92,202.91,0.12]
[1756714659362,89.27381938,202.92,202.91,0.12]
[1756714659785,63.27381938,202.92,202.91,0.12]
[1756714660491,17.52576892,202.92,202.91,0.12]
[1756714660792,80.51941042,202.92,202.91,0.12]
[1756714660990,43.52576892,202.92,202.91,0.12]
[1756714661166,84.34576892,202.92,202.91,0.12]
[1756714663175,89.27381938,202.92,202.91,0.12]
[1756714663373,85.44746088,202.92,202.91,0.12]
[1756714663608,89.27381938,202.92,202.91,0.12]
[1756714663897,89.27381938,202.92,202.72,28.70558207]
[1756714663898,39.59559401,202.88,202.72,4.04125258]
[1756714664074,3.8263585,202.81,202.75,29.8263585]
[1756714664273,40.82,202.8,202.75,29.8263585]
[1756714664473,40.82,202.8,202.75,26.0]
[1756714664796,40.82,202.8,202.76,4.93193923]
[1756714665891,3.8263585,202.81,202.77,26.0]
[1756714666090,40.82,202.8,202.77,26.0]
[1756714666388,40.82,202.8,202.77,29.8263585]
[1756714666898,40.82,202.8,202.78,4.9314528]
[1756714668789,40.82,202.8,202.76,17.26178732]
[1756714669087,40.82,202.8,202.76,21.08814582]
[1756714669505,40.82,202.8,202.76,17.26178732]
[1756714669689,44.6463585,202.8,202.76,4.93193923]
[1756714670088,43.18695734,202.8,202.76,4.93193923]
[1756714670289,40.82,202.8,202.76,4.93193923]
[1756714670496,43.18695734,202.8,202.76,4.93193923]
[1756714670885,43.18695734,202.8,202.75,4.93218249]
[1756714671082,43.18695734,202.8,202.75,7.29913983]
[1756714671808,40.82,202.8,202.75,19.62959605]
[1756714672211,13.59559401,202.79,202.75,17.26263871]
[1756714672509,15.96255135,202.79,202.75,4.93218249]
[1756714672685,13.59559401,202.79,202.75,7.29913983]
[1756714672890,40.8,202.78,202.74,12.330723]
[1756714673311,2.36695734,202.81,202.75,2.36695734]
[1756714673517,13.59559401,202.82,202.78,2.36695734]
[1756714673817,40.8,202.81,202.8,2.36695734]
[1756714674127,40.8,202.81,202.77,26.0]
[1756714674493,40.8,202.8,202.79,2.36695734]
[1756714674800,40.8,202.81,202.79,2.36695734]
[1756714675106,40.8,202.81,202.77,26.0]
[1756714675107,40.8,202.81,202.78,4.9314528]
[1756714675405,0.14216157,202.86,202.79,2.36695734]
[1756714675618,40.78,202.85,202.81,2.36695734]
[1756714675791,13.59559401,202.84,202.78,17.26008481]
[1756714675996,2.36695734,202.85,202.79,2.36695734]
[1756714676193,40.78,202.84,202.8,2.36695734]
[1756714676395,40.78,202.84,202.79,2.36695734]
[1756714676596,13.59559401,202.87,202.78,17.26008481]
[1756714676793,13.59559401,202.9,202.86,2.36695734]
[1756714677009,0.03,202.94,202.89,2.36695734]
[1756714677212,40.78,202.9,202.89,2.36695734]
[1756714677397,40.78,202.9,202.88,2.36695734]
[1756714677588,40.78,202.9,202.85,26.0]
[1756714677795,40.78,202.9,202.87,2.36695734]
[1756714678123,40.78,202.9,202.88,3.85219919]
[1756714678425,13.62559401,202.94,202.88,3.85219919]
[1756714678426,40.78,202.89,202.88,3.85219919]
[1756714679214,40.78,202.89,202.86,4.92950803]
[1756714679406,13.59559401,202.88,202.84,8.78197037]
[1756714679614,13.59559401,202.88,202.84,4.92977118]
[1756714679830,13.59559401,202.88,202.84,8.78197037]
[1756714680412,40.78,202.87,202.84,3.85219919]
[1756714680717,40.78,202.87,202.84,8.78212037]
[1756714681016,40.76,202.89,202.87,4.92926504]
[1756714681186,40.76,202.89,202.88,3.85219919]
[1756714681385,40.76,202.89,202.87,3.85219919]
[1756714681587,0.03,202.91,202.87,3.85219919]
[1756714681886,40.76,202.88,202.86,4.92948762]
[1756714682086,40.76,202.88,202.87,3.85219919]
[1756714682296,0.03,202.91,202.87,3.85219919]
[1756714682596,0.03,202.91,202.89,26.0]
[1756714682597,1e-08,202.91,202.89,26.0]
[1756714682814,1e-08,202.95,202.9,7.70439838]
[1756714683126,0.03,203.09,202.97,31.06899804]
[1756714683127,1e-08,202.98,202.97,31.06899804]
[1756714683323,0.03,203.06,202.97,31.06899804]
[1756714683324,0.03,203.06,202.98,13.73775558]
[1756714683621,0.03,203.06,203.05,3.85219919]
[1756714683799,0.03,203.06,203.01,26.0]
[1756714683999,0.03,203.06,203.02,26.0]
[1756714684202,0.03,203.06,203.01,3.85219919]
[1756714684389,3.85219919,203.05,202.99,3.85219919]
[1756714684719,3.85219919,203.03,202.97,3.85219919]
[1756714684932,17.4477932,203.0,202.86,12.32318002]
[1756714685095,40.74,202.99,202.93,3.85219919]
[1756714685292,3.85219919,203.0,202.86,12.32318002]
[1756714685496,58.1877932,202.99,202.86,12.32318002]
[1756714685803,58.1877932,202.99,202.87,17.25244504]
[1756714686012,17.4477932,202.97,202.91,3.85219919]
[1756714686216,3.85219919,202.96,202.9,3.85219919]
[1756714686397,40.74,202.99,202.9,3.85219919]
[1756714686602,3.85219919,202.96,202.9,3.85219919]
[1756714687221,13.59559401,202.95,202.9,3.85219919]
[1756714687613,17.4477932,202.95,202.9,3.85219919]
[1756714687803,40.74,202.99,202.91,3.85219919]
[1756714688010,13.59559401,202.98,202.92,3.85219919]
[1756714688320,40.74,202.99,202.87,26.0]
[1756714688321,3.85219919,202.96,202.87,26.0]
[1756714688634,3.85219919,202.94,202.87,26.0]
[1756714688929,0.14216157,202.97,202.79,4.93120962]
[1756714688930,3.85219919,202.91,202.79,4.93120962]
[1756714689101,3.85219919,202.91,202.85,3.85219919]
[1756714689494,40.72,202.92,202.82,39.595594]
[1756714689702,40.72,202.92,202.89,3.85219919]
[1756714690624,40.72,202.92,202.88,3.85219919]
[1756714690801,40.72,202.92,202.87,3.85219919]
[1756714690997,17.4477932,202.91,202.8,4.93095866]
[1756714691203,4.92902208,202.88,202.82,3.85219919]
[1756714691418,44.57219919,202.87,202.81,3.85219919]
[1756714691616,3.85219919,202.85,202.79,3.85219919]
[1756714691825,13.59559401,202.86,202.8,3.85219919]
[1756714692125,17.4477932,202.86,202.8,3.85219919]
[1756714692322,3.85219919,202.85,202.8,3.85219919]
[1756714692509,4.92975104,202.85,202.77,4.93165809]
[1756714692712,40.72,202.84,202.8,3.85219919]
[1756714693722,40.72,202.84,202.78,26.0]
[1756714693911,40.72,202.84,202.83,3.85219919]
[1756714694110,40.72,202.84,202.82,3.85219919]
[1756714694430,13.59559401,202.89,202.83,3.85219919]
[1756714694599,40.72,202.88,202.87,3.85219919]
[1756714694800,13.59559401,202.92,202.87,3.85219919]
[1756714695099,40.72,202.91,202.84,26.0]
[1756714695300,40.72,202.91,202.87,3.85219919]
[1756714695508,13.59559401,202.93,202.88,3.85219919]
[1756714695725,44.57219919,202.92,202.86,0.12]
[1756714696024,40.72,202.92,202.87,3.85219919]
[1756714696212,40.72,202.92,202.88,3.85219919]
[1756714696525,40.72,202.92,202.87,3.85219919]
[1756714696730,0.14216157,202.95,202.86,0.12]
[1756714697023,3.85219919,202.89,202.86,0.12]
[1756714697238,3.85219919,202.87,202.86,0.12]
[1756714697610,54.29559401,202.88,202.86,0.12]
[1756714697809,58.1477932,202.88,202.86,0.12]
[1756714698128,4.92926504,202.87,202.86,0.12]
[1756714698303,8.78146423,202.87,202.86,0.12]
[1756714698640,63.07683965,202.88,202.86,0.12]
[1756714698996,17.4477932,202.88,202.86,0.12]
[1756714699200,40.7,202.87,202.86,0.12]
[1756714699624,4.92880947,202.89,202.86,0.12]
[1756714699826,40.7,202.88,202.86,3.97219919]
[1756714700207,40.7,202.89,202.87,3.85219919]
[1756714700407,40.7,202.89,202.86,0.12]
[1756714700602,40.7,202.89,202.87,3.85219919]
[1756714701234,40.7,202.89,202.86,0.12]
[1756714701434,44.55219919,202.89,202.86,0.12]
[1756714701620,13.59559401,202.88,202.86,0.12]
[1756714701936,40.7,202.88,202.87,3.85219919]
[1756714702302,40.7,202.88,202.86,3.97219919]
[1756714702504,40.7,202.88,202.86,0.12]
[1756714703340,4.92857984,202.9,202.86,0.12]
[1756714703639,40.7,202.89,202.86,0.12]
[1756714703846,3.85219919,202.88,202.86,0.12]
[1756714704330,13.59559401,202.88,202.86,0.12]
[1756714704710,4.92889369,202.89,202.86,0.12]
[1756714704911,40.7,202.88,202.86,0.12]
[1756714705114,40.68,202.87,202.86,0.12]
[1756714706951,40.68,202.87,202.86,3.97219919]
[1756714707646,40.68,202.87,202.86,0.12]
[1756714709331,40.68,202.87,202.86,3.97219919]
[1756714709528,40.68,202.87,202.86,0.12]
[1756714712050,13.59559401,202.91,202.86,0.12]
[1756714712350,13.59559401,202.94,202.86,5.04943594]
[1756714712548,40.68,202.93,202.86,5.04943594]
[1756714712753,0.03,202.98,202.9,3.85219919]
[1756714713044,17.4477932,202.96,202.9,3.85219919]
[1756714713247,17.4477932,202.96,202.91,3.85219919]
[1756714713617,13.59559401,202.96,202.9,3.85219919]
[1756714713820,40.66,202.95,202.92,3.85219919]
[1756714714448,40.66,202.95,202.91,3.85219919]
[1756714715243,13.59559401,202.94,202.89,26.0]
[1756714715444,17.4477932,202.94,202.87,4.92917395]
[1756714715634,13.59559401,202.92,202.87,3.85219919]
[1756714715833,13.59559401,202.9,202.86,0.12]
[1756714716545,17.4477932,202.9,202.86,0.12]
[1756714716931,22.37633118,202.9,202.86,0.12]
[1756714717247,40.66,202.89,202.86,8.90167638]
[1756714717437,40.66,202.89,202.87,3.85219919]
[1756714718138,40.66,202.89,202.86,0.12]
[1756714718350,40.66,202.89,202.86,3.97219919]
[1756714718552,40.66,202.89,202.86,0.12]
[1756714718732,17.4477932,202.87,202.86,0.12]
[1756714718935,17.4477932,202.87,202.83,0.12]
[1756714718936,39.59559401,202.84,202.83,0.12]
[1756714719246,88.08215396,202.84,202.83,0.12]
[1756714719823,4.92926504,202.87,202.83,0.12]
[1756714720051,3.85219919,202.85,202.83,0.12]
[1756714720248,17.4477932,202.85,202.83,0.12]
[1756714720548,40.66,202.84,202.83,0.12]
[1756714720943,54.25559401,202.84,202.83,0.12]
[1756714721949,40.66,202.84,202.83,0.12]
[1756714722133,13.59559401,202.86,202.83,0.12]
[1756714722333,4.92833594,202.91,202.83,8.90241509]
[1756714722539,40.66,202.9,202.85,3.85219919]
[1756714722937,40.66,202.9,202.85,8.78179055]
[1756714723649,3.85219919,202.94,202.88,3.85219919]
[1756714723831,40.66,202.93,202.88,3.85219919]
[1756714724179,40.66,202.93,202.85,17.25396897]
[1756714724358,40.66,202.93,202.88,3.85219919]
[1756714724726,40.66,202.93,202.88,8.78102711]
[1756714725578,0.03,203.01,202.92,3.85219919]
[1756714725743,40.66,202.97,202.95,3.85219919]
[1756714725945,40.66,202.97,202.94,3.85219919]
[1756714726134,40.66,202.97,202.95,3.85219919]
[1756714726335,40.66,202.97,202.94,3.85219919]
[1756714726548,40.66,202.97,202.95,3.85219919]
[1756714727429,40.66,202.97,202.94,8.77952742]
[1756714727626,40.66,202.97,202.94,4.92732823]
[1756714727927,40.66,202.97,202.95,3.85219919]
[1756714728345,40.66,202.97,202.93,3.85219919]
[1756714728526,40.66,202.97,202.92,4.92783433]
[1756714728730,0.03,202.98,202.96,3.85219919]
[1756714728956,0.03,202.98,202.97,8.77903566]
[1756714728957,40.67,202.98,202.97,8.77903566]
[1756714729660,40.67,202.98,202.97,4.92683647]
[1756714729860,40.67,202.98,202.96,3.85219919]
[1756714730234,40.67,202.98,202.92,17.24817661]
[1756714730436,40.67,202.98,202.94,3.85219919]
[1756714730660,40.67,202.98,202.96,3.85219919]
[1756714730869,40.67,202.98,202.97,8.77903566]
[1756714731556,40.67,202.98,202.93,4.92780761]
[1756714731860,44.52219919,202.98,202.93,4.92780761]
[1756714732247,40.67,202.98,202.93,8.7800068]
[1756714732447,0.03,202.97,202.94,3.85219919]
[1756714732659,40.67,202.97,202.96,3.85219919]
[1756714732863,0.03,202.97,202.96,8.77927841]
[1756714733461,0.03,202.97,202.96,3.85219919]
[1756714733661,0.03,202.97,202.95,29.85219919]
[1756714733848,0.03,202.97,202.93,8.7800068]
[1756714733849,40.64,202.96,202.93,8.7800068]
[1756714734247,0.03,202.97,202.93,8.7800068]
[1756714734451,40.62,202.96,202.94,3.85219919]
[1756714735055,40.62,202.96,202.95,4.927322]
[1756714735852,40.62,202.96,202.95,8.77952119]
[1756714736057,0.03,202.97,202.95,8.77952119]
[1756714736242,0.03,202.97,202.96,3.85219919]
[1756714737035,0.03,202.97,202.96,8.77927841]
[1756714738355,0.03,202.97,202.95,3.85219919]
[1756714738652,0.03,202.97,202.96,3.85219919]
[1756714739245,0.03,202.97,202.96,8.77927841]
[1756714741749,40.65,203.0,202.96,4.92707922]
[1756714742044,1e-08,203.02,203.0,0.14216157]
[1756714742249,1e-08,203.02,203.01,3.99436076]
[1756714742880,1e-08,203.02,202.99,26.0]
[1756714743297,1e-08,203.02,203.01,3.85219919]
[1756714743461,0.03,203.06,203.04,26.0]
[1756714743666,1e-08,203.06,203.05,7.70439838]
[1756714743862,0.2,203.12,203.08,26.0]
[1756714744064,0.2,203.12,203.11,3.85219919]
[1756714744597,0.2,203.12,203.07,26.0]
[1756714744895,0.2,203.12,203.11,3.85219919]
[1756714745259,0.03,203.19,203.15,3.85219919]
[1756714745456,3.85219919,203.18,203.13,26.0]
[1756714745675,0.03,203.19,203.1,8.7758821]
[1756714745892,0.03,203.19,203.15,3.85219919]
[1756714746257,0.03,203.19,203.1,43.23289019]
[1756714746477,0.03,203.19,203.15,3.85219919]
[1756714747360,0.03,203.19,203.15,8.77467027]
[1756714748383,0.03,203.19,203.15,4.92247108]
[1756714748579,0.03,203.19,203.14,3.85219919]
[1756714748892,4.05219919,203.16,203.1,26.0]
[1756714749061,4.05219919,203.16,203.1,34.7758559]
[1756714749260,0.2,203.16,203.1,34.7758559]
[1756714749456,0.2,203.16,203.15,3.85219919]
[1756714750107,1e-08,203.16,203.15,3.85219919]
[1756714750396,1e-08,203.16,203.15,7.70439838]
[1756714750565,1e-08,203.16,203.15,5.82375919]
[1756714750980,1e-08,203.16,203.15,3.85219919]
[1756714751376,1e-08,203.16,203.15,8.77467027]
[1756714754473,0.03,203.21,203.2,3.85219919]
[1756714755088,0.03,203.22,203.2,3.85219919]
[1756714755275,0.03,203.22,203.21,3.85219919]
[1756714755479,0.03,203.22,203.21,8.77321685]
[1756714755688,0.03,203.22,203.18,4.92174426]
[1756714756268,3.88219919,203.22,203.18,4.92174426]
[1756714756473,0.03,203.22,203.18,4.92174426]
[1756714756895,0.03,203.22,203.18,8.77394345]
[1756714758076,0.03,203.22,203.18,4.92174426]
[1756714758499,0.03,203.22,203.18,8.77394345]
[1756714758678,0.03,203.22,203.18,4.92174426]
[1756714758871,0.03,203.22,203.15,8.77467027]
[1756714759072,3.85219919,203.21,203.15,8.77467027]
[1756714759272,0.03,203.22,203.15,8.77467027]
[1756714759489,3.85219919,203.21,203.15,8.77467027]
[1756714759770,0.03,203.22,203.16,29.85219919]
[1756714759969,3.88219919,203.22,203.16,29.85219919]
[1756714760200,3.88219919,203.22,203.16,26.0]
[1756714760399,0.03,203.22,203.17,3.85219919]
[1756714760989,0.03,203.22,203.18,4.92174426]
[1756714761178,0.03,203.22,203.19,3.85219919]
[1756714761789,0.03,203.22,203.21,3.85219919]
[1756714761995,0.03,203.22,203.21,29.85219919]
[1756714763008,0.03,203.22,203.21,26.0]
[1756714763201,0.03,203.22,203.21,30.92101766]
[1756714764213,0.03,203.22,203.21,34.77321685]
[1756714764792,0.03,203.27,203.21,47.07576101]
[1756714765001,0.03,203.27,203.26,3.85219919]
[1756714765183,0.03,203.27,203.26,8.77200633]
[1756714766378,40.56,203.34,203.26,21.07152418]
[1756714766379,3.85219919,203.34,203.26,21.07152418]
[1756714766607,0.2,203.37,203.3,3.85219919]
[1756714766913,13.59559401,203.36,203.31,3.85219919]
[1756714767210,13.59559401,203.36,203.25,29.85219919]
[1756714767512,3.85219919,203.31,203.26,26.0]
[1756714767685,3.85219919,203.3,203.26,26.0]
[1756714768109,0.14216157,203.35,203.26,29.85219919]
[1756714768402,3.85219919,203.33,203.27,3.85219919]
[1756714768606,3.85219919,203.31,203.26,29.85219919]
[1756714768814,3.85219919,203.3,203.26,26.0]
[1756714768981,0.03,203.27,203.24,3.85219919]
[1756714769316,0.03,203.27,203.25,4.9200492]
[1756714771209,0.03,203.27,203.24,4.92029128]
[1756714771414,3.88219919,203.27,203.23,4.92049243]
[1756714771594,3.85219919,203.26,203.23,4.92049243]
[1756714771794,3.85219919,203.26,203.23,30.92049243]
[1756714772185,0.03,203.27,203.23,30.92049243]
[1756714772388,3.85219919,203.26,203.23,30.92049243]
[1756714772584,3.88219919,203.27,203.23,30.92049243]
[1756714772788,0.03,203.27,203.26,3.85219919]
[1756714773200,0.03,203.27,203.26,8.77200633]
[1756714773413,1e-08,203.27,203.26,4.91980714]
[1756714773613,1e-08,203.27,203.26,8.77200633]
[1756714774222,1e-08,203.27,203.26,10.74249833]
[1756714774405,1e-08,203.3,203.29,26.0]
[1756714774724,0.2,203.37,203.29,29.85219919]
[1756714775017,0.2,203.37,203.28,44.39219919]
[1756714775018,0.2,203.37,203.34,3.85219919]
[1756714775193,0.2,203.37,203.36,4.91738788]
[1756714775398,0.2,203.37,203.36,8.76958707]
[1756714776623,0.2,203.37,203.36,26.0]
[1756714777309,0.2,203.37,203.35,3.85219919]
[1756714778904,0.2,203.37,203.33,26.0]
[1756714779106,0.2,203.37,203.34,3.85219919]
[1756714779317,0.2,203.37,203.36,4.91738788]
[1756714780027,0.2,203.37,203.36,8.76958707]
[1756714780913,0.2,203.37,203.36,4.91738788]
[1756714781106,0.2,203.37,203.36,8.76958707]
[1756714784327,1e-08,203.38,203.37,26.0]
[1756714784635,1e-08,203.38,203.37,29.99436076]
[1756714784817,3.85219919,203.51,203.41,26.0]
[1756714785126,44.37219919,203.52,203.46,3.85219919]
[1756714785541,3.85219919,203.51,203.45,3.85219919]
[1756714785842,3.85219919,203.47,203.41,3.85219919]
[1756714786145,3.85219919,203.42,203.37,4.91714608]
[1756714786431,3.85219919,203.4,203.37,4.91714608]
[1756714786644,3.85219919,203.41,203.37,4.91714608]
[1756714786805,0.03,203.38,203.37,4.91714608]
[1756714787415,3.88219919,203.38,203.33,4.91811341]
[1756714787617,0.03,203.38,203.36,3.85219919]
[1756714787828,0.03,203.38,203.37,3.85219919]
[1756714788027,1e-08,203.38,203.37,3.85219919]
[1756714789039,1e-08,203.38,203.37,8.76934527]